[Event "Schachsommer 2019"]
[Site "Dresden"]
[Date "2019.08.12"]
[Round "3.1"]
[White "Efimenko, Zahar"]
[Black "Pollmüller, Michael"]
[Result "1-0"]
[ECO "B04"]
[WhiteElo "2631"]
[BlackElo "2175"]
[Annotator "RC"]
[PlyCount "75"]
[EventDate "2019.08.10"]
[EventType "swiss"]
[EventCountry "GER"]
[SourceTitle "playchess.com"]
[Source "ChessBase"]
[SourceQuality "1"]
[TimeControl "40/5400+30:1800+30"]

1. e4 {[%emt 1:29:34]} Nf6 {[%emt 1:29:49]} 2. e5 {[%emt 1:30:19]} Nd5 {[%emt 1:30:19]} 3. d4 {[%emt 1:30:09]} d6 {[%emt 1:30:25]} 4. Nf3 {[%emt 1:30:30]} g6 {[%emt 1:29:24]} 5. Bc4 {[%emt 1:29:54]} Nb6 {[%emt 1:29:47]} 6. Bb3 {[%emt 1:30:58]} Bg7 {[%emt 1:29:46]} 7. Qe2 {[%emt 1:31:15]} dxe5 {[%emt 1:28:44]} 8. dxe5 {[%emt 1:30:25]} O-O {[%emt 1:28:36]} 9. h3 {[%emt 1:29:46]} a5 {[%emt 1:28:29]} 10. a3 {[%emt 1:25:31]} a4 {[%emt 1:15:27]} 11. Ba2 {[%emt 1:25:04]} Nc6 {[%emt 1:15:49]} 12. O-O {[%emt 1:20:22]} Nd4 {[%emt 1:16:04]} 13. Nxd4 {[%emt 1:19:44]} Qxd4 {[%emt 1:16:20]} 14. e6 {[%emt 1:20:00]} Bxe6 {[%emt 1:11:07]} 15. Bxe6 {[%emt 1:11:37]} fxe6 {[%emt 1:11:31]} 16. Qxe6+ {[%emt 1:20:48]} Kh8 {[%emt 1:06:21]} 17. Nd2 {[%emt 1:06:51]} Qc5 {[%emt 0:52:37]} 18. c3 {[%emt 1:18:40]} Rad8 {[%emt 1:19:10]} 19. Nf3 {[%emt 1:12:19]} Nc4 {[%emt 0:31:28]} 20. Ng5 {[%emt 1:00:44]} Qd5 {[%emt 0:08:41]} 21. Qg4 {[%emt 0:48:01]} Rd6 {[%emt 0:05:04]} 22. Bf4 {[%emt 0:35:01]} Rdf6 {[%emt 0:04:30]} 23. Bg3 {[%emt 0:34:12]} Nd2 {[%emt 0:34:42]} 24. Rad1 {[%emt 0:02:49]} h6 {[%emt 0:01:32]} 25. Qe2 {[%emt 0:25:11]} Qxg5 {[%emt 0:01:42]} 26. Rxd2 {[%emt 0:25:36]} c6 {[%emt 0:01:35]} 27. Rd7 {[%emt 0:24:51]} b5 {[%emt 0:25:21]} 28. Qxe7 {[%emt 0:22:22]} R6f7 {[%emt 0:22:52]} 29. Qxf7 {[%emt 0:13:51]} Rxf7 {[%emt 0:01:07]} 30. Rxf7 {[%emt 0:14:16]} Qd5 {[%emt 0:01:34]} 31. Rc7 {[%emt 0:13:56]} Be5 {[%emt 0:00:33]} 32. Bxe5+ {[%emt 0:13:15]} Qxe5 {[%emt 0:01:01]} 33. Rxc6 {[%emt 0:13:28]} Qe2 {[%emt 0:01:22]} 34. Rc7 {[%emt 0:09:45]} Qe5 35. Rd7 {[%emt 0:09:25]} h5 {[%emt 0:01:28]} 36. Rfd1 {[%emt 0:09:05]} Qe2 {[%emt 0:01:26]} 37. h4 {[%emt 0:08:33]} Kg8 {[%emt 0:01:43]} 38. Rd8+ {[%emt 0:08:09]} 1-0

[Event "Schachsommer 2019"]
[Site "Dresden"]
[Date "2019.08.12"]
[Round "4.1"]
[White "Kambrath, Yannick"]
[Black "Efimenko, Zahar"]
[Result "1/2-1/2"]
[ECO "A41"]
[WhiteElo "2344"]
[BlackElo "2608"]
[Annotator "ChessBase"]
[PlyCount "107"]
[EventDate "2019.08.10"]
[EventType "swiss"]
[EventCountry "GER"]
[SourceTitle "playchess.com"]
[Source "ChessBase"]
[SourceQuality "1"]
[TimeControl "40/5400+30:1800+30"]

1. d4 {[%emt 1:30:27]} d6 {[%emt 1:29:32]} 2. Nf3 {[%emt 1:30:52]} Bg4 {[%emt 1:31:22]} 3. g3 {[%emt 1:28:12]} Bxf3 {[%emt 1:28:58]} 4. exf3 {[%emt 1:28:37]} e6 {[%emt 1:28:30]} 5. Bg2 {[%emt 1:28:45]} d5 {[%emt 1:27:49]} 6. O-O {[%emt 1:28:34]} Nd7 {[%emt 1:24:16]} 7. Re1 {[%emt 1:24:39]} c6 {[%emt 1:15:34]} 8. f4 {[%emt 1:21:31]} Ne7 {[%emt 1:15:34]} 9. Nd2 {[%emt 1:16:04]} Nf5 {[%emt 1:09:59]} 10. Nf3 {[%emt 1:16:21]} Be7 {[%emt 1:09:58]} 11. b3 {[%emt 1:07:57]} O-O {[%emt 1:05:37]} 12. Bb2 {[%emt 1:07:43]} Qa5 {[%emt 1:08:13]} 13. Ne5 {[%emt 0:56:24]} Nxe5 {[%emt 1:00:01]} 14. fxe5 {[%emt 0:55:39]} Ba3 {[%emt 0:54:37]} 15. Qc1 {[%emt 0:48:30]} Bxb2 {[%emt 0:52:35]} 16. Qxb2 {[%emt 0:48:55]} Rfd8 {[%emt 0:49:51]} 17. b4 {[%emt 0:43:21]} Qc7 {[%emt 0:41:33]} 18. Bf1 {[%emt 0:41:56]} b6 {[%emt 0:39:32]} 19. Bd3 {[%emt 0:41:31]} Ne7 {[%emt 0:39:55]} 20. c3 {[%emt 0:39:39]} c5 {[%emt 0:35:23]} 21. Kg2 {[%emt 0:32:12]} a5 {[%emt 0:35:00]} 22. b5 {[%emt 0:19:58]} a4 {[%emt 0:32:05]} 23. a3 {[%emt 0:20:24]} Rdc8 {[%emt 0:30:26]} 24. Rac1 {[%emt 0:20:25]} Qa7 {[%emt 0:30:18]} 25. f4 {[%emt 0:18:29]} Qd7 {[%emt 0:25:35]} 26. Rf1 {[%emt 0:17:49]} Nf5 {[%emt 0:19:45]} 27. Bxf5 {[%emt 0:15:27]} exf5 {[%emt 0:20:11]} 28. Rfd1 {[%emt 0:13:58]} Qe6 {[%emt 0:17:40]} 29. c4 {[%emt 0:10:59]} cxd4 {[%emt 0:17:03]} 30. Rxd4 {[%emt 0:11:10]} dxc4 {[%emt 0:15:49]} 31. Rd6 {[%emt 0:16:19]} Qe7 {[%emt 0:16:03]} 32. Qd4 {[%emt 0:10:51]} Qb7+ {[%emt 0:15:24]} 33. Kf2 {[%emt 0:09:21]} h6 {[%emt 0:10:57]} 34. Rd7 {[%emt 0:08:36]} Qe4 {[%emt 0:07:15]} 35. Qxe4 {[%emt 0:08:17]} fxe4 {[%emt 0:07:41]} 36. Rd6 {[%emt 0:05:46]} Rc5 {[%emt 0:06:54]} 37. Rxb6 {[%emt 0:06:05]} Ra5 {[%emt 0:04:33]} 38. Ke3 {[%emt 0:04:08]} Rcxb5 {[%emt 0:03:29]} 39. Rxb5 {[%emt 0:04:33]} Rxb5 {[%emt 0:03:56]} 40. Rxc4 {[%emt 0:04:01]} Rb3+ {[%emt 0:04:14]} 41. Kxe4 {[%emt 0:04:27]} Rxa3 {[%emt 0:04:42]} 42. Rc8+ {[%emt 0:04:42]} Kh7 {[%emt 0:05:07]} 43. Rf8 {[%emt 0:02:49]} Ra2 {[%emt 0:02:14]} 44. h4 {[%emt 0:28:22]} f6 {[%emt 0:30:49]} 45. e6 {[%emt 0:19:36]} Re2+ {[%emt 0:22:37]} 46. Kf5 {[%emt 0:19:39]} a3 {[%emt 0:15:10]} 47. Ra8 {[%emt 0:19:48]} a2 {[%emt 0:14:55]} 48. h5 {[%emt 0:15:25]} Rb2 {[%emt 0:15:06]} 49. Kg4 {[%emt 0:10:05]} Re2 {[%emt 0:12:39]} 50. f5 {[%emt 0:09:43]} Rf2 {[%emt 0:10:13]} 51. Ra7 {[%emt 0:04:40]} Kg8 {[%emt 0:05:10]} 52. Ra8+ {[%emt 0:04:45]} Kh7 {[%emt 0:12:56]} 53. Ra7 {[%emt 0:04:51]} Kg8 {[%emt 0:13:21]} 54. Ra8+ {[%emt 0:13:51]} 1/2-1/2

[Event "Schachsommer 2019"]
[Site "Dresden"]
[Date "2019.08.12"]
[Round "4.2"]
[White "Koelle, Tobias"]
[Black "Nothnagel, Marian Can"]
[Result "1-0"]
[ECO "D31"]
[WhiteElo "2159"]
[BlackElo "2388"]
[Annotator "NA"]
[PlyCount "163"]
[EventDate "2019.08.10"]
[EventType "swiss"]
[EventCountry "GER"]
[SourceTitle "playchess.com"]
[Source "ChessBase"]
[SourceQuality "1"]
[TimeControl "40/5400+30:1800+30"]

1. d4 {[%emt 1:30:27]} d5 {[%emt 1:30:27]} 2. c4 {[%emt 1:30:53]} e6 {[%emt 1:30:55]} 3. Nc3 {[%emt 1:31:16]} a6 {[%emt 1:31:23]} 4. cxd5 {[%emt 1:31:41]} exd5 {[%emt 1:31:49]} 5. Bf4 {[%emt 1:32:05]} c6 {[%emt 1:32:35]} 6. e3 {[%emt 1:32:26]} Bd6 {[%emt 1:32:56]} 7. Bxd6 {[%emt 1:32:35]} Qxd6 {[%emt 1:31:24]} 8. Bd3 {[%emt 1:31:52]} Nf6 {[%emt 1:31:47]} 9. h3 {[%emt 1:31:34]} Be6 {[%emt 1:27:10]} 10. Nf3 {[%emt 1:30:41]} Nbd7 {[%emt 1:27:35]} 11. a3 {[%emt 1:28:22]} O-O {[%emt 1:15:59]} 12. O-O {[%emt 1:16:29]} g6 {[%emt 1:11:12]} 13. Rc1 {[%emt 1:11:42]} Rae8 {[%emt 1:01:01]} 14. Re1 {[%emt 1:26:10]} Re7 {[%emt 0:58:11]} 15. Qc2 {[%emt 1:21:16]} Qb8 {[%emt 0:47:18]} 16. Nd2 {[%emt 1:05:08]} Nh5 {[%emt 0:38:42]} 17. b4 {[%emt 0:59:08]} Ng7 {[%emt 0:25:18]} 18. Na4 {[%emt 0:55:36]} Bf5 {[%emt 0:24:14]} 19. Nc5 {[%emt 0:55:31]} Bxd3 {[%emt 0:21:33]} 20. Qxd3 {[%emt 0:54:43]} Nf5 {[%emt 0:20:54]} 21. a4 {[%emt 0:53:26]} Nd6 {[%emt 0:20:32]} 22. Ndb3 {[%emt 0:51:41]} Nf6 {[%emt 0:19:55]} 23. Nd2 {[%emt 0:49:44]} Rfe8 {[%emt 0:19:36]} 24. Nf3 {[%emt 0:20:06]} Nd7 {[%emt 0:17:32]} 25. Nd2 {[%emt 0:45:28]} Kg7 {[%emt 0:16:46]} 26. Re2 {[%emt 0:40:46]} Nf6 {[%emt 0:15:02]} 27. Rce1 {[%emt 0:39:38]} Qd8 {[%emt 0:13:06]} 28. Qc3 {[%emt 0:36:38]} Nh5 {[%emt 0:12:13]} 29. Nf3 {[%emt 0:28:42]} f6 {[%emt 0:08:58]} 30. Qd3 {[%emt 0:27:06]} Kg8 {[%emt 0:08:21]} 31. Qb1 {[%emt 0:22:53]} Nf4 {[%emt 0:07:46]} 32. Ra2 {[%emt 0:22:48]} Ne6 {[%emt 0:08:02]} 33. Qb3 {[%emt 0:20:44]} Kg7 {[%emt 0:07:55]} 34. Qb1 {[%emt 0:19:30]} Qc8 {[%emt 0:07:27]} 35. Rc1 {[%emt 0:19:16]} Nc7 {[%emt 0:07:38]} 36. Nd2 {[%emt 0:16:44]} Ne6 {[%emt 0:04:44]} 37. Qd3 {[%emt 0:14:01]} Qd8 {[%emt 0:02:34]} 38. Rac2 {[%emt 0:03:04]} Qb6 {[%emt 0:02:31]} 39. Rb1 {[%emt 0:08:26]} Ng5 {[%emt 0:02:40]} 40. Qb3 {[%emt 0:07:38]} Qd8 {[%emt 0:01:41]} 41. Rbc1 {[%emt 0:04:33]} Qb8 {[%emt 0:01:59]} 42. Nd3 {[%emt 0:02:18]} Ne6 {[%emt 0:21:15]} 43. Nc5 {[%emt 0:32:23]} Nc7 {[%emt 0:20:35]} 44. Qd3 {[%emt 0:31:38]} Kh8 {[%emt 0:19:29]} 45. Qe2 {[%emt 0:28:24]} Ne6 {[%emt 0:28:54]} 46. Qf3 {[%emt 0:27:45]} Kg7 {[%emt 0:18:03]} 47. Qg3 {[%emt 0:26:48]} Qd8 {[%emt 0:17:57]} 48. Qf3 {[%emt 0:25:40]} Ng5 {[%emt 0:18:16]} 49. Qe2 {[%emt 0:24:31]} h5 {[%emt 0:16:28]} 50. Qd3 {[%emt 0:16:58]} Qb6 {[%emt 0:16:18]} 51. Qb3 {[%emt 0:21:07]} Ngf7 {[%emt 0:16:12]} 52. Rb1 {[%emt 0:20:40]} Qd8 {[%emt 0:16:22]} 53. Qd3 {[%emt 0:20:43]} Qb8 {[%emt 0:16:41]} 54. Rbc1 {[%emt 0:20:40]} Nh6 {[%emt 0:21:10]} 55. Qf1 {[%emt 0:19:47]} Qd8 {[%emt 0:16:44]} 56. Nd3 {[%emt 0:17:38]} h4 {[%emt 0:12:19]} 57. Nb1 {[%emt 0:12:49]} Qd7 {[%emt 0:16:38]} 58. Nc3 {[%emt 0:16:17]} Nc4 {[%emt 0:07:52]} 59. b5 {[%emt 0:16:14]} axb5 {[%emt 0:07:54]} 60. axb5 {[%emt 0:15:47]} Qd6 {[%emt 0:07:10]} 61. bxc6 {[%emt 0:15:36]} bxc6 {[%emt 0:07:38]} 62. Nb1 {[%emt 0:08:08]} g5 {[%emt 0:06:15]} 63. Nd2 {[%emt 0:15:10]} Nxd2 {[%emt 0:06:40]} 64. Rxd2 {[%emt 0:15:39]} g4 {[%emt 0:06:58]} 65. Rdc2 {[%emt 0:15:43]} Rc8 {[%emt 0:06:50]} 66. Nf4 {[%emt 0:16:00]} gxh3 {[%emt 0:06:59]} 67. gxh3 {[%emt 0:06:59]} Kh7 {[%emt 0:16:45]} 68. Kh1 {[%emt 0:16:40]} f5 {[%emt 0:05:14]} 69. Qa6 {[%emt 0:16:37]} Rec7 {[%emt 0:05:33]} 70. Rc5 {[%emt 0:16:51]} Nf7 {[%emt 0:05:57]} 71. Nxd5 {[%emt 0:16:49]} Qe6 {[%emt 0:05:59]} 72. Qe2 {[%emt 0:14:07]} Ra7 {[%emt 0:04:26]} 73. Nf4 {[%emt 0:13:06]} Qf6 {[%emt 0:04:14]} 74. Rg1 {[%emt 0:04:44]} Nh6 {[%emt 0:03:51]} 75. Rg6 {[%emt 0:12:08]} Ra1+ {[%emt 0:04:05]} 76. Kh2 {[%emt 0:12:31]} Qxg6 {[%emt 0:03:34]} 77. Nxg6 {[%emt 0:12:51]} Kxg6 {[%emt 0:13:21]} 78. Qf3 {[%emt 0:12:36]} Rg8 {[%emt 0:13:06]} 79. Rxc6+ {[%emt 0:12:45]} Kg7 {[%emt 0:03:39]} 80. Rc7+ {[%emt 0:12:34]} Nf7 {[%emt 0:03:42]} 81. Qxf5 {[%emt 0:12:39]} Kh6 {[%emt 0:13:09]} 82. Qxf7 {[%emt 0:12:30]} 1-0

[Event "Schachsommer 2019"]
[Site "Dresden"]
[Date "2019.08.12"]
[Round "4.3"]
[White "Heimann, Andreas"]
[Black "Siedentopf, Daniel"]
[Result "1-0"]
[ECO "C18"]
[WhiteElo "2634"]
[BlackElo "2294"]
[Annotator "ChessBase"]
[PlyCount "49"]
[EventDate "2019.08.10"]
[EventType "swiss"]
[EventCountry "GER"]
[SourceTitle "playchess.com"]
[Source "ChessBase"]
[SourceQuality "1"]
[TimeControl "40/5400+30:1800+30"]

1. e4 {[%emt 1:30:30]} e6 {[%emt 1:30:53]} 2. d4 {[%emt 1:30:48]} d5 {[%emt 1:30:50]} 3. Nc3 {[%emt 1:31:13]} Bb4 {[%emt 1:31:15]} 4. e5 {[%emt 1:31:39]} Ne7 {[%emt 1:31:40]} 5. a3 {[%emt 1:32:05]} Bxc3+ {[%emt 1:32:06]} 6. bxc3 {[%emt 1:32:31]} c5 {[%emt 1:32:31]} 7. Qg4 {[%emt 1:32:48]} O-O {[%emt 1:32:54]} 8. Bd3 {[%emt 1:33:14]} Nbc6 {[%emt 1:33:15]} 9. Bg5 {[%emt 1:33:38]} Qa5 {[%emt 1:33:27]} 10. Ne2 {[%emt 1:33:43]} Ng6 {[%emt 1:33:49]} 11. O-O {[%emt 1:34:19]} Qa4 {[%emt 1:33:57]} 12. f4 {[%emt 1:34:13]} c4 {[%emt 1:34:18]} 13. Bxg6 {[%emt 1:34:38]} fxg6 {[%emt 1:34:45]} 14. f5 {[%emt 1:35:02]} Rxf5 {[%emt 1:35:08]} 15. Rxf5 {[%emt 1:35:27]} gxf5 {[%emt 1:31:31]} 16. Qg3 {[%emt 1:35:52]} Qa5 {[%emt 1:24:01]} 17. Nf4 {[%emt 1:31:50]} Qc7 {[%emt 1:23:36]} 18. Rf1 {[%emt 1:24:06]} Qf7 {[%emt 1:11:20]} 19. Qh4 {[%emt 1:16:06]} h6 {[%emt 1:16:36]} 20. Bxh6 {[%emt 1:16:20]} gxh6 {[%emt 1:16:50]} 21. Rf3 {[%emt 1:12:42]} Kf8 {[%emt 1:01:16]} 22. Rg3 {[%emt 1:10:57]} Ke8 {[%emt 1:00:11]} 23. Qxh6 {[%emt 1:10:27]} Kd8 {[%emt 1:00:05]} 24. Rg7 {[%emt 1:08:57]} Qf8 {[%emt 0:59:01]} 25. Ng6 {[%emt 1:09:16]} 1-0

[Event "Schachsommer 2019"]
[Site "Dresden"]
[Date "2019.08.12"]
[Round "4.4"]
[White "Jablonicky, Martin"]
[Black "Richter, Leonard"]
[Result "1-0"]
[ECO "B50"]
[WhiteElo "2378"]
[BlackElo "2284"]
[Annotator "NA"]
[PlyCount "119"]
[EventDate "2019.08.10"]
[EventType "swiss"]
[EventCountry "GER"]
[SourceTitle "playchess.com"]
[Source "ChessBase"]
[SourceQuality "1"]
[TimeControl "40/5400+30:1800+30"]

1. e4 {[%emt 1:30:27]} c5 {[%emt 1:30:26]} 2. Nf3 {[%emt 1:30:52]} d6 {[%emt 1:30:52]} 3. Nc3 {[%emt 1:31:18]} Nf6 {[%emt 1:31:15]} 4. e5 {[%emt 1:31:45]} dxe5 {[%emt 1:30:18]} 5. Nxe5 {[%emt 1:30:48]} a6 {[%emt 1:27:26]} 6. g3 {[%emt 1:32:08]} Qd6 {[%emt 1:20:40]} 7. Nf3 {[%emt 1:32:17]} Bg4 {[%emt 1:18:04]} 8. Bg2 {[%emt 1:18:34]} Nc6 {[%emt 1:13:08]} 9. h3 {[%emt 1:17:35]} Bh5 {[%emt 0:52:18]} 10. d3 {[%emt 1:13:41]} e5 {[%emt 0:41:49]} 11. g4 {[%emt 1:09:08]} Bg6 {[%emt 0:42:14]} 12. Nd2 {[%emt 1:06:04]} Qc7 {[%emt 0:35:50]} 13. Nc4 {[%emt 1:01:54]} O-O-O {[%emt 0:29:51]} 14. g5 {[%emt 0:45:45]} Bh5 {[%emt 0:21:33]} 15. Qd2 {[%emt 0:42:22]} Ng8 {[%emt 0:17:13]} 16. Nd5 {[%emt 0:40:27]} Rxd5 {[%emt 0:17:35]} 17. Bxd5 {[%emt 0:40:51]} Nd4 {[%emt 0:16:50]} 18. c3 {[%emt 0:28:47]} Bf3 {[%emt 0:15:53]} 19. cxd4 {[%emt 0:24:28]} Bxd5 {[%emt 0:16:18]} 20. Rg1 {[%emt 0:23:41]} Ne7 {[%emt 0:12:13]} 21. Qa5 {[%emt 0:17:39]} Qxa5+ {[%emt 0:11:24]} 22. Nxa5 {[%emt 0:18:04]} Nf5 {[%emt 0:11:49]} 23. Nc4 {[%emt 0:12:19]} Bxc4 {[%emt 0:11:39]} 24. dxc4 {[%emt 0:16:16]} Nxd4 {[%emt 0:11:47]} 25. Kf1 {[%emt 0:13:24]} Be7 {[%emt 0:11:02]} 26. Be3 {[%emt 0:13:11]} Rd8 {[%emt 0:10:34]} 27. Rd1 {[%emt 0:11:45]} Rd6 {[%emt 0:12:15]} 28. Bxd4 {[%emt 0:08:49]} cxd4 {[%emt 0:10:02]} 29. Ke2 {[%emt 0:08:16]} Rb6 {[%emt 0:09:18]} 30. b3 {[%emt 0:08:20]} Kd7 {[%emt 0:08:01]} 31. f4 {[%emt 0:08:31]} f6 {[%emt 0:08:18]} 32. Kf3 {[%emt 0:08:48]} Ke6 {[%emt 0:07:08]} 33. fxe5 {[%emt 0:07:38]} fxe5 {[%emt 0:06:54]} 34. Ke4 {[%emt 0:04:21]} a5 {[%emt 0:04:42]} 35. Rb1 {[%emt 0:04:01]} Rc6 {[%emt 0:04:39]} 36. h4 {[%emt 0:03:52]} Rc8 {[%emt 0:04:24]} 37. Rgf1 {[%emt 0:04:54]} g6 {[%emt 0:03:38]} 38. Rf3 {[%emt 0:03:36]} h6 {[%emt 0:02:20]} 39. gxh6 {[%emt 0:03:07]} Rh8 {[%emt 0:02:45]} 40. Rg1 {[%emt 0:03:12]} Rxh6 {[%emt 0:02:56]} 41. Rg4 {[%emt 0:00:37]} g5 {[%emt 0:15:32]} 42. Rf5 {[%emt 0:12:24]} gxh4 {[%emt 0:15:30]} 43. Rxe5+ Kf7 {[%emt 0:12:51]} 44. Rxa5 {[%emt 0:12:41]} h3 {[%emt 0:12:21]} 45. Rg1 {[%emt 0:12:51]} h2 {[%emt 0:13:10]} 46. Rh1 {[%emt 0:08:33]} Rh4+ {[%emt 0:06:53]} 47. Kd3 {[%emt 0:07:23]} b6 {[%emt 0:01:48]} 48. Rb5 {[%emt 0:12:31]} Rh3+ {[%emt 0:01:58]} 49. Kxd4 {[%emt 0:12:09]} Bc5+ {[%emt 0:02:22]} 50. Kd5 {[%emt 0:05:35]} Bg1 {[%emt 0:06:05]} 51. Kc6 {[%emt 0:05:43]} Rg3 {[%emt 0:01:49]} 52. Kb7 {[%emt 0:02:19]} Rg2 {[%emt 0:01:51]} 53. a4 {[%emt 0:05:32]} Rb2 {[%emt 0:01:47]} 54. a5 {[%emt 0:04:44]} bxa5 {[%emt 0:02:12]} 55. c5 {[%emt 0:05:01]} Ke6 {[%emt 0:00:48]} 56. c6 {[%emt 0:05:16]} a4 {[%emt 0:00:14]} 57. c7 {[%emt 0:00:44]} Rc2 58. bxa4 Z0 {c6} 59. Rb2 {c7} Z0 60. Ka6 {Rb6+ Ka5} 1-0

[Event "Schachsommer 2019"]
[Site "Dresden"]
[Date "2019.08.12"]
[Round "4.5"]
[White "Mkrtchian, Lilit"]
[Black "Post, Hugo"]
[Result "1-0"]
[ECO "E15"]
[WhiteElo "2395"]
[BlackElo "2155"]
[Annotator "NA"]
[PlyCount "49"]
[EventDate "2019.08.10"]
[EventType "swiss"]
[EventCountry "GER"]
[SourceTitle "playchess.com"]
[Source "ChessBase"]
[SourceQuality "1"]
[TimeControl "40/5400+30:1800+30"]

1. d4 {[%emt 1:30:17]} Nf6 {[%emt 1:30:47]} 2. Nf3 {[%emt 1:30:28]} e6 {[%emt 1:30:10]} 3. c4 {[%emt 1:28:52]} b6 {[%emt 1:28:38]} 4. g3 {[%emt 1:27:26]} Ba6 {[%emt 1:28:29]} 5. b3 {[%emt 1:27:15]} Bb4+ {[%emt 1:28:12]} 6. Bd2 {[%emt 1:27:39]} Be7 {[%emt 1:28:11]} 7. Nc3 {[%emt 1:28:41]} O-O {[%emt 1:28:24]} 8. Bg2 {[%emt 1:27:37]} d5 {[%emt 1:23:50]} 9. cxd5 {[%emt 1:27:30]} exd5 {[%emt 1:24:00]} 10. O-O {[%emt 1:24:30]} c5 {[%emt 1:20:54]} 11. Bg5 {[%emt 1:11:07]} Nc6 {[%emt 1:10:15]} 12. Rc1 {[%emt 1:08:36]} Re8 {[%emt 1:09:06]} 13. Re1 {[%emt 1:05:55]} Ne4 {[%emt 1:06:25]} 14. Bxe7 {[%emt 1:00:27]} Nxe7 {[%emt 0:39:15]} 15. dxc5 {[%emt 0:32:38]} bxc5 {[%emt 0:34:26]} 16. Nxe4 {[%emt 0:29:42]} dxe4 {[%emt 0:34:50]} 17. Ng5 {[%emt 0:35:20]} Qxd1 {[%emt 0:14:35]} 18. Rcxd1 {[%emt 0:21:28]} f5 {[%emt 0:14:19]} 19. Ne6 {[%emt 0:21:43]} Rac8 {[%emt 0:14:42]} 20. Rd7 {[%emt 0:19:59]} Bb5 {[%emt 0:14:57]} 21. Rxa7 {[%emt 0:19:17]} g6 {[%emt 0:09:17]} 22. Nc7 {[%emt 0:10:14]} Nc6 {[%emt 0:09:41]} 23. Rb7 {[%emt 0:10:11]} Ba6 {[%emt 0:10:04]} 24. Nxa6 {[%emt 0:10:34]} Z0 25. Nc7 1-0

[Event "Schachsommer 2019"]
[Site "Dresden"]
[Date "2019.08.14"]
[Round "5.1"]
[White "Heimann, Andreas"]
[Black "Koelle, Tobias"]
[Result "1-0"]
[ECO "E71"]
[WhiteElo "2634"]
[BlackElo "2159"]
[Annotator "ChessBase"]
[PlyCount "99"]
[EventDate "2019.08.10"]
[EventType "swiss"]
[EventCountry "GER"]
[SourceTitle "playchess.com"]
[Source "ChessBase"]
[SourceQuality "1"]
[TimeControl "40/5400+30:1800+30"]

1. d4 {[%emt 1:28:31]} Nf6 {[%emt 1:30:23]} 2. c4 {[%emt 1:28:58]} g6 {[%emt 1:30:44]} 3. Nc3 {[%emt 1:29:24]} Bg7 {[%emt 1:31:07]} 4. e4 {[%emt 1:29:50]} d6 {[%emt 1:31:31]} 5. h3 {[%emt 1:32:01]} O-O {[%emt 1:31:29]} 6. Be3 {[%emt 1:30:37]} e5 {[%emt 1:31:46]} 7. d5 {[%emt 1:31:02]} a5 {[%emt 1:32:10]} 8. g4 {[%emt 1:31:17]} Na6 {[%emt 1:31:29]} 9. Nge2 {[%emt 1:31:26]} Nc5 {[%emt 1:28:03]} 10. Ng3 {[%emt 1:31:38]} b6 {[%emt 1:32:08]} 11. Qd2 {[%emt 1:26:09]} Bd7 {[%emt 1:26:07]} 12. O-O-O {[%emt 1:18:02]} a4 {[%emt 1:16:51]} 13. f3 {[%emt 1:16:41]} Ne8 {[%emt 1:07:09]} 14. h4 {[%emt 1:15:35]} f6 {[%emt 1:06:19]} 15. h5 {[%emt 1:13:06]} g5 {[%emt 1:04:55]} 16. h6 {[%emt 1:13:24]} Bh8 {[%emt 1:05:22]} 17. Nf5 {[%emt 1:13:50]} Rf7 {[%emt 1:00:25]} 18. Nb5 {[%emt 1:00:55]} Kf8 {[%emt 0:50:12]} 19. Rh2 {[%emt 1:06:51]} Qb8 {[%emt 0:50:15]} 20. Qb4 {[%emt 1:07:01]} Qb7 {[%emt 0:43:46]} 21. Rc2 {[%emt 1:00:49]} Ra6 {[%emt 0:36:22]} 22. Kd2 {[%emt 0:55:42]} Bc8 {[%emt 0:34:33]} 23. Ke1 {[%emt 0:53:52]} Rd7 {[%emt 0:32:31]} 24. Kf2 {[%emt 0:33:01]} Rd8 {[%emt 0:46:44]} 25. Kg3 {[%emt 0:46:34]} Bd7 {[%emt 0:31:58]} 26. Rcd2 {[%emt 0:32:28]} Rda8 {[%emt 0:29:39]} 27. Be2 {[%emt 0:30:09]} Qb8 {[%emt 0:29:21]} 28. Qc3 {[%emt 0:29:51]} Qb7 {[%emt 0:42:02]} 29. Qc2 {[%emt 0:28:13]} Qb8 {[%emt 0:26:59]} 30. Nc3 {[%emt 0:36:29]} Qb7 {[%emt 0:36:59]} 31. Rb1 {[%emt 0:26:42]} Qa7 {[%emt 0:25:13]} 32. Qc1 {[%emt 0:34:18]} Qb8 {[%emt 0:24:48]} 33. Bf2 {[%emt 0:32:46]} Qb7 {[%emt 0:22:54]} 34. Kg2 {[%emt 0:31:04]} Qb8 {[%emt 0:23:01]} 35. Bd1 {[%emt 0:28:34]} Qb7 {[%emt 0:20:59]} 36. b4 {[%emt 0:28:21]} axb3 {[%emt 0:21:23]} 37. axb3 {[%emt 0:28:46]} Qc8 {[%emt 0:19:29]} 38. b4 {[%emt 0:28:51]} Nb7 {[%emt 0:29:21]} 39. Be2 {[%emt 0:25:52]} Ra3 {[%emt 0:18:00]} 40. Rdb2 {[%emt 0:26:04]} Bxf5 {[%emt 0:26:34]} 41. gxf5 {[%emt 0:21:58]} Qd7 {[%emt 0:22:28]} 42. c5 {[%emt 0:19:19]} bxc5 {[%emt 0:16:10]} 43. bxc5 {[%emt 0:19:39]} Nxc5 {[%emt 0:16:33]} 44. Bxc5 {[%emt 0:20:03]} dxc5 {[%emt 0:16:59]} 45. Nb5 {[%emt 0:20:26]} R3a5 {[%emt 0:20:56]} 46. Qxc5+ {[%emt 0:20:19]} Qe7 {[%emt 0:16:36]} 47. Qc6 {[%emt 0:17:06]} Ra4 {[%emt 0:14:09]} 48. Nc3 {[%emt 0:12:36]} Ra3 {[%emt 0:14:22]} 49. Rb8 {[%emt 0:12:25]} Rxb8 {[%emt 0:14:27]} 50. Rxb8 {[%emt 0:12:50]} 1-0

[Event "Schachsommer 2019"]
[Site "Dresden"]
[Date "2019.08.14"]
[Round "5.2"]
[White "Efimenko, Zahar"]
[Black "Jablonicky, Martin"]
[Result "1/2-1/2"]
[ECO "D00"]
[WhiteElo "2608"]
[BlackElo "2378"]
[Annotator "ChessBase"]
[PlyCount "57"]
[EventDate "2019.08.10"]
[EventType "swiss"]
[EventCountry "GER"]
[SourceTitle "playchess.com"]
[Source "ChessBase"]
[SourceQuality "1"]
[TimeControl "40/5400+30:1800+30"]

1. d4 {[%emt 1:29:34]} Nf6 {[%emt 1:30:04]} 2. Nf3 {[%emt 1:29:55]} g6 {[%emt 1:28:30]} 3. Nc3 {[%emt 1:29:00]} d5 {[%emt 1:28:00]} 4. Bf4 {[%emt 1:28:28]} Bg7 {[%emt 1:27:45]} 5. h4 {[%emt 1:28:08]} c5 {[%emt 1:28:38]} 6. e3 {[%emt 1:27:58]} O-O {[%emt 1:08:04]} 7. Be2 {[%emt 1:22:24]} Nc6 {[%emt 1:04:09]} 8. O-O {[%emt 1:18:37]} Ne4 {[%emt 0:51:38]} 9. h5 {[%emt 1:05:53]} Bg4 {[%emt 0:32:12]} 10. hxg6 {[%emt 0:47:27]} hxg6 {[%emt 0:32:06]} 11. Nxe4 {[%emt 0:46:52]} dxe4 {[%emt 0:32:20]} 12. Ng5 {[%emt 0:46:57]} Bxe2 {[%emt 0:27:42]} 13. Qxe2 {[%emt 0:46:37]} cxd4 {[%emt 0:26:28]} 14. exd4 {[%emt 0:47:02]} Qxd4 {[%emt 0:15:13]} 15. c3 {[%emt 0:46:59]} Qf6 {[%emt 0:13:48]} 16. Qxe4 {[%emt 0:14:18]} Bh6 {[%emt 0:40:04]} 17. Nh3 {[%emt 0:38:20]} Bxf4 {[%emt 0:14:05]} 18. Nxf4 {[%emt 0:38:47]} Rad8 {[%emt 0:11:02]} 19. Rad1 {[%emt 0:37:39]} e6 {[%emt 0:07:45]} 20. g3 {[%emt 0:34:18]} Kg7 {[%emt 0:07:27]} 21. Kg2 {[%emt 0:07:57]} Rh8 {[%emt 0:26:49]} 22. Rxd8 {[%emt 0:22:19]} Rxd8 {[%emt 0:05:17]} 23. Re1 {[%emt 0:22:45]} Qf5 {[%emt 0:04:34]} 24. Qxf5 {[%emt 0:17:31]} gxf5 {[%emt 0:04:57]} 25. Kf1 {[%emt 0:05:27]} Rd2 {[%emt 0:04:52]} 26. Re2 {[%emt 0:16:52]} Rd1+ {[%emt 0:05:17]} 27. Re1 {[%emt 0:17:13]} Rd2 {[%emt 0:17:43]} 28. Re2 {[%emt 0:17:27]} Rd1+ {[%emt 0:06:03]} 29. Re1 {[%emt 0:17:54]} 1/2-1/2